[Event "Late-Titled-Tuesday-Blitz-February-27-2024"]
[Site "Chess.com"]
[Date "2024.02.27"]
[Round "2"]
[White "nicolasbatista3"]
[Black "Zmeusor"]
[Result "1/2-1/2"]
[WhiteElo "2427"]
[BlackElo "2096"]
[TimeControl "180+1"]
[EndTime "14:17:58 PST"]
[Termination "Game drawn - insufficient material"]

1. Nf3 {[%clk 0:02:57.9]} 1... d5 {[%clk 0:02:41.5]} 2. b3 {[%clk 0:02:56]} 2...
Nf6 {[%clk 0:02:39.6]} 3. Bb2 {[%clk 0:02:52.8]} 3... g6 {[%clk 0:02:38.6]} 4.
e3 {[%clk 0:02:52.2]} 4... Bg7 {[%clk 0:02:38.5]} 5. c4 {[%clk 0:02:52.3]} 5...
O-O {[%clk 0:02:36.8]} 6. cxd5 {[%clk 0:02:51.7]} 6... Nxd5 {[%clk 0:02:36.8]}
7. Bxg7 {[%clk 0:02:51.3]} 7... Kxg7 {[%clk 0:02:37.7]} 8. Nc3 {[%clk 0:02:50]}
8... Nxc3 {[%clk 0:02:37.1]} 9. dxc3 {[%clk 0:02:50.9]} 9... Qxd1+ {[%clk
0:02:36]} 10. Rxd1 {[%clk 0:02:51.8]} 10... c5 {[%clk 0:02:22.5]} 11. Be2 {[%clk
0:02:45.9]} 11... Nc6 {[%clk 0:02:21.3]} 12. O-O {[%clk 0:02:44.8]} 12... a6
{[%clk 0:02:12.4]} 13. c4 {[%clk 0:02:34.9]} 13... Bf5 {[%clk 0:02:08.2]} 14.
Bd3 {[%clk 0:02:28.1]} 14... Bxd3 {[%clk 0:01:40]} 15. Rxd3 {[%clk 0:02:29]}
15... Rfd8 {[%clk 0:01:38.6]} 16. Rfd1 {[%clk 0:02:28.9]} 16... Kf6 {[%clk
0:01:27.7]} 17. h4 {[%clk 0:02:13.5]} 17... h6 {[%clk 0:01:22.2]} 18. Kf1 {[%clk
0:02:05.5]} 18... Rxd3 {[%clk 0:01:17.2]} 19. Rxd3 {[%clk 0:02:06.4]} 19... Rd8
{[%clk 0:01:10.4]} 20. Rxd8 {[%clk 0:02:04.9]} 20... Nxd8 {[%clk 0:01:11.1]} 21.
Nd2 {[%clk 0:02:05.4]} 21... b6 {[%clk 0:01:05.6]} 22. Ke2 {[%clk 0:01:58.2]}
22... Nc6 {[%clk 0:00:55.2]} 23. a3 {[%clk 0:01:58.3]} 23... e5 {[%clk
0:00:54.5]} 24. Kd3 {[%clk 0:01:51.2]} 24... Ke6 {[%clk 0:00:52.3]} 25. Kc3
{[%clk 0:01:36.1]} 25... a5 {[%clk 0:00:42.2]} 26. Kd3 {[%clk 0:01:00.4]} 26...
f5 {[%clk 0:00:40.2]} 27. f3 {[%clk 0:00:59.7]} 27... g5 {[%clk 0:00:37]} 28.
hxg5 {[%clk 0:00:59.2]} 28... hxg5 {[%clk 0:00:36.4]} 29. g4 {[%clk 0:00:58.4]}
29... e4+ {[%clk 0:00:18.7]} 30. Ke2 {[%clk 0:00:55.2]} 30... exf3+ {[%clk
0:00:18.6]} 31. Kxf3 {[%clk 0:00:56.1]} 31... Ne5+ {[%clk 0:00:17.6]} 32. Ke2
{[%clk 0:00:49.4]} 32... Nxg4 {[%clk 0:00:18.5]} 33. e4 {[%clk 0:00:39.1]} 33...
Ne5 {[%clk 0:00:17.9]} 34. exf5+ {[%clk 0:00:37.7]} 34... Kxf5 {[%clk
0:00:18.8]} 35. Ke3 {[%clk 0:00:37.5]} 35... g4 {[%clk 0:00:18.9]} 36. Ne4
{[%clk 0:00:37.6]} 36... Nc6 {[%clk 0:00:12.9]} 37. Nd6+ {[%clk 0:00:37.8]}
37... Ke5 {[%clk 0:00:12.2]} 38. Nc8 {[%clk 0:00:38]} 38... Nd4 {[%clk
0:00:10.4]} 39. Nxb6 {[%clk 0:00:37.6]} 39... Nxb3 {[%clk 0:00:09.7]} 40. Nd7+
{[%clk 0:00:37.4]} 40... Kd6 {[%clk 0:00:09.7]} 41. Nf6 {[%clk 0:00:38]} 41...
g3 {[%clk 0:00:09.3]} 42. Ne4+ {[%clk 0:00:38.6]} 42... Ke5 {[%clk 0:00:06.4]}
43. Nxg3 {[%clk 0:00:39.5]} 43... Nd4 {[%clk 0:00:06.1]} 44. Kd3 {[%clk
0:00:31.5]} 44... a4 {[%clk 0:00:05.6]} 45. Ne4 {[%clk 0:00:28.7]} 45... Ne6
{[%clk 0:00:04.4]} 46. Nc3 {[%clk 0:00:28.7]} 46... Nf4+ {[%clk 0:00:03]} 47.
Ke3 {[%clk 0:00:25.9]} 47... Ng2+ {[%clk 0:00:03]} 48. Kf2 {[%clk 0:00:25.4]}
48... Kd4 {[%clk 0:00:02.8]} 49. Nxa4 {[%clk 0:00:22.6]} 49... Kxc4 {[%clk
0:00:03.2]} 50. Kxg2 {[%clk 0:00:22.6]} 50... Kb3 {[%clk 0:00:03.3]} 51. Nxc5+
{[%clk 0:00:22.6]} 51... Kxa3 {[%clk 0:00:03.8]} 1/2-1/2

[Event "Late-Titled-Tuesday-Blitz-February-27-2024"]
[Site "Chess.com"]
[Date "2024.02.27"]
[Round "2"]
[White "ErikRonka"]
[Black "The_Machine04"]
[Result "0-1"]
[WhiteElo "2545"]
[BlackElo "2810"]
[TimeControl "180+1"]
[EndTime "14:17:59 PST"]
[Termination "The_Machine04 won by resignation"]

1. e4 {[%clk 0:03:00.9]} 1... d6 {[%clk 0:03:00.1]} 2. d4 {[%clk 0:03:00.9]}
2... Nf6 {[%clk 0:02:59.9]} 3. Nc3 {[%clk 0:03:01.4]} 3... e5 {[%clk 0:03:00.2]}
4. Nf3 {[%clk 0:03:00.7]} 4... Nbd7 {[%clk 0:03:00.1]} 5. Rg1 {[%clk 0:02:59.5]}
5... c6 {[%clk 0:03:00.2]} 6. g4 {[%clk 0:02:58.9]} 6... h6 {[%clk 0:03:00.1]}
7. Be3 {[%clk 0:02:52.5]} 7... Be7 {[%clk 0:02:58.6]} 8. Qd2 {[%clk 0:02:38]}
8... Qc7 {[%clk 0:02:45.6]} 9. h4 {[%clk 0:02:27.8]} 9... Nf8 {[%clk 0:02:39.8]}
10. g5 {[%clk 0:01:44.2]} 10... hxg5 {[%clk 0:02:38.5]} 11. hxg5 {[%clk
0:01:45.1]} 11... Ng4 {[%clk 0:02:38.4]} 12. O-O-O {[%clk 0:01:35.2]} 12... Nxe3
{[%clk 0:02:36.7]} 13. fxe3 {[%clk 0:01:26]} 13... Ng6 {[%clk 0:02:35.7]} 14.
Bc4 {[%clk 0:01:17.3]} 14... Be6 {[%clk 0:02:33.9]} 15. Bxe6 {[%clk 0:01:04.9]}
15... fxe6 {[%clk 0:02:34.8]} 16. Qg2 {[%clk 0:00:57]} 16... O-O-O {[%clk
0:02:05]} 17. Qg4 {[%clk 0:00:56.3]} 17... Nf8 {[%clk 0:02:05.4]} 18. Rh1 {[%clk
0:00:38.1]} 18... Rxh1 {[%clk 0:02:04.2]} 19. Rxh1 {[%clk 0:00:39]} 19... Kb8
{[%clk 0:02:03.7]} 20. Rh8 {[%clk 0:00:37.8]} 20... exd4 {[%clk 0:01:36.6]} 21.
exd4 {[%clk 0:00:37.5]} 21... d5 {[%clk 0:01:19.2]} 22. Rg8 {[%clk 0:00:28.7]}
22... Bb4 {[%clk 0:01:16.2]} 23. Nd1 {[%clk 0:00:21.6]} 23... Qf7 {[%clk
0:01:13.5]} 24. Rh8 {[%clk 0:00:19.7]} 24... Bd6 {[%clk 0:01:05.9]} 25. e5
{[%clk 0:00:18.5]} 25... Be7 {[%clk 0:01:03.7]} 26. g6 {[%clk 0:00:18.8]} 26...
Nxg6 {[%clk 0:00:57.5]} 27. Rxd8+ {[%clk 0:00:17.5]} 27... Bxd8 {[%clk
0:00:58.4]} 28. Nd2 {[%clk 0:00:11.7]} 28... Qf5 {[%clk 0:00:53.3]} 29. Qg2
{[%clk 0:00:09.2]} 29... Bg5 {[%clk 0:00:52.5]} 30. c3 {[%clk 0:00:08.3]} 30...
Nf4 {[%clk 0:00:52]} 31. Qh2 {[%clk 0:00:04.7]} 31... Nd3+ {[%clk 0:00:46.4]}
32. Kc2 {[%clk 0:00:05.1]} 32... Ne1+ {[%clk 0:00:41.7]} 33. Kb3 {[%clk
0:00:04]} 33... Qc2+ {[%clk 0:00:41.4]} 34. Ka3 {[%clk 0:00:04.6]} 34... Qxd2
{[%clk 0:00:29.9]} 35. Qh8+ {[%clk 0:00:04.5]} 35... Kc7 {[%clk 0:00:29.7]} 36.
Qxg7+ {[%clk 0:00:05.4]} 36... Kb6 {[%clk 0:00:30.2]} 37. Qf8 {[%clk 0:00:05.9]}
37... Nc2+ {[%clk 0:00:24.7]} 38. Kb3 {[%clk 0:00:05.9]} 38... Qxd1 {[%clk
0:00:17.3]} 39. Qc5+ {[%clk 0:00:04.8]} 39... Ka6 {[%clk 0:00:13.2]} 40. Ka4
{[%clk 0:00:05.3]} 40... Nxd4+ {[%clk 0:00:09.5]} 41. Ka3 {[%clk 0:00:05.7]}
41... Nb5+ {[%clk 0:00:09.2]} 42. Kb4 {[%clk 0:00:05.6]} 42... Qg4+ {[%clk
0:00:09.8]} 43. Kb3 {[%clk 0:00:04.7]} 43... Qc4+ {[%clk 0:00:09.6]} 44. Qxc4
{[%clk 0:00:05.2]} 44... dxc4+ {[%clk 0:00:10.5]} 45. Kxc4 {[%clk 0:00:05.8]}
45... Nc7 {[%clk 0:00:11.1]} 46. Kc5 {[%clk 0:00:06]} 46... Be7+ {[%clk
0:00:11.7]} 47. Kc4 {[%clk 0:00:06]} 47... b5+ {[%clk 0:00:12]} 48. Kd4 {[%clk
0:00:06]} 48... c5+ {[%clk 0:00:12.5]} 49. Ke4 {[%clk 0:00:06.2]} 49... Kb6
{[%clk 0:00:12.8]} 0-1

[Event "Late-Titled-Tuesday-Blitz-February-27-2024"]
[Site "Chess.com"]
[Date "2024.02.27"]
[Round "2"]
[White "Fh2411"]
[Black "Sajkochess"]
[Result "1/2-1/2"]
[WhiteElo "2617"]
[BlackElo "2336"]
[TimeControl "180+1"]
[EndTime "14:18:02 PST"]
[Termination "Game drawn - insufficient material"]

1. d4 {[%clk 0:03:00.1]} 1... Nf6 {[%clk 0:02:59.6]} 2. Nf3 {[%clk 0:02:58.7]}
2... e6 {[%clk 0:03:00.1]} 3. Bf4 {[%clk 0:02:57.5]} 3... c5 {[%clk 0:02:58.1]}
4. e3 {[%clk 0:02:57.9]} 4... cxd4 {[%clk 0:02:56.1]} 5. exd4 {[%clk 0:02:57.7]}
5... b6 {[%clk 0:02:56.3]} 6. c3 {[%clk 0:02:55.1]} 6... Bb7 {[%clk 0:02:56.8]}
7. Nbd2 {[%clk 0:02:54.5]} 7... Be7 {[%clk 0:02:57.4]} 8. Bd3 {[%clk 0:02:54.7]}
8... O-O {[%clk 0:02:57.8]} 9. O-O {[%clk 0:02:55.4]} 9... d6 {[%clk 0:02:58.4]}
10. Re1 {[%clk 0:02:52.1]} 10... Nbd7 {[%clk 0:02:58.7]} 11. Qe2 {[%clk
0:02:50.5]} 11... Re8 {[%clk 0:02:58.9]} 12. a4 {[%clk 0:02:50.7]} 12... a6
{[%clk 0:02:58.7]} 13. Ng5 {[%clk 0:02:48.1]} 13... Nf8 {[%clk 0:02:59.1]} 14.
h4 {[%clk 0:02:40.3]} 14... Nd5 {[%clk 0:02:53.8]} 15. Qh5 {[%clk 0:02:23]}
15... g6 {[%clk 0:02:42.3]} 16. Qg4 {[%clk 0:02:23.1]} 16... Nxf4 {[%clk
0:02:14.1]} 17. Qxf4 {[%clk 0:02:24]} 17... Bf6 {[%clk 0:02:14.4]} 18. Be4
{[%clk 0:02:06.7]} 18... e5 {[%clk 0:02:06.2]} 19. Qf3 {[%clk 0:02:02.5]} 19...
d5 {[%clk 0:01:59.9]} 20. Bc2 {[%clk 0:01:38]} 20... Bxg5 {[%clk 0:01:44.4]} 21.
hxg5 {[%clk 0:01:36.5]} 21... Qxg5 {[%clk 0:01:44.7]} 22. Nf1 {[%clk 0:01:27.7]}
22... e4 {[%clk 0:01:40]} 23. Qe3 {[%clk 0:01:25.3]} 23... Qxe3 {[%clk
0:01:02.9]} 24. fxe3 {[%clk 0:01:24.8]} 24... f5 {[%clk 0:00:56.9]} 25. g3
{[%clk 0:01:21.5]} 25... Ne6 {[%clk 0:00:52.8]} 26. Nd2 {[%clk 0:01:15.4]} 26...
g5 {[%clk 0:00:45.6]} 27. Re2 {[%clk 0:01:06.8]} 27... Kh8 {[%clk 0:00:42.1]}
28. Rf1 {[%clk 0:01:05.8]} 28... Rf8 {[%clk 0:00:41.9]} 29. Bb3 {[%clk
0:01:03.8]} 29... Rf6 {[%clk 0:00:35.3]} 30. Ref2 {[%clk 0:01:00.7]} 30... Raf8
{[%clk 0:00:35.2]} 31. c4 {[%clk 0:00:55.7]} 31... dxc4 {[%clk 0:00:32.2]} 32.
Bxc4 {[%clk 0:00:56.6]} 32... Nxd4 {[%clk 0:00:32.7]} 33. exd4 {[%clk
0:00:41.9]} 33... e3 {[%clk 0:00:32.6]} 34. Re2 {[%clk 0:00:42.5]} 34... exd2
{[%clk 0:00:31.6]} 35. Rxd2 {[%clk 0:00:43.4]} 35... f4 {[%clk 0:00:32]} 36.
gxf4 {[%clk 0:00:37.2]} 36... gxf4 {[%clk 0:00:32.4]} 37. d5 {[%clk 0:00:34]}
37... Rg8+ {[%clk 0:00:20]} 38. Kf2 {[%clk 0:00:34.1]} 38... Rfg6 {[%clk
0:00:20.4]} 39. b3 {[%clk 0:00:17.5]} 39... Rg2+ {[%clk 0:00:20.2]} 40. Ke1
{[%clk 0:00:18.1]} 40... Re8+ {[%clk 0:00:20.7]} 41. Kd1 {[%clk 0:00:18.8]}
41... Rxd2+ {[%clk 0:00:19.7]} 42. Kxd2 {[%clk 0:00:19.7]} 42... Rd8 {[%clk
0:00:20]} 43. Rxf4 {[%clk 0:00:19.1]} 43... b5 {[%clk 0:00:19.5]} 44. axb5
{[%clk 0:00:18.8]} 44... axb5 {[%clk 0:00:19.7]} 45. Bxb5 {[%clk 0:00:19.3]}
45... Rxd5+ {[%clk 0:00:19.6]} 46. Bd3 {[%clk 0:00:19.9]} 46... Ba6 {[%clk
0:00:19.7]} 47. Rf3 {[%clk 0:00:19.6]} 47... Kg7 {[%clk 0:00:16.3]} 48. Kc3
{[%clk 0:00:19.8]} 48... Rxd3+ {[%clk 0:00:12.4]} 49. Rxd3 {[%clk 0:00:20.7]}
49... Bxd3 {[%clk 0:00:12.6]} 50. Kxd3 {[%clk 0:00:21.4]} 50... Kf7 {[%clk
0:00:10.3]} 51. Kd4 {[%clk 0:00:20.7]} 51... Ke7 {[%clk 0:00:09.9]} 52. Ke5
{[%clk 0:00:20.6]} 52... Kd7 {[%clk 0:00:10.2]} 53. Kf6 {[%clk 0:00:21.2]} 53...
Kc6 {[%clk 0:00:10.6]} 54. Kg5 {[%clk 0:00:20.8]} 54... Kc5 {[%clk 0:00:10.6]}
55. Kh6 {[%clk 0:00:21.7]} 55... Kb4 {[%clk 0:00:10.6]} 56. Kxh7 {[%clk
0:00:22.6]} 56... Kxb3 {[%clk 0:00:11.5]} 1/2-1/2

[Event "Late-Titled-Tuesday-Blitz-February-27-2024"]
[Site "Chess.com"]
[Date "2024.02.27"]
[Round "2"]
[White "TomsKantans"]
[Black "TemploVillamarin"]
[Result "1-0"]
[WhiteElo "2673"]
[BlackElo "2204"]
[TimeControl "180+1"]
[EndTime "14:18:03 PST"]
[Termination "TomsKantans won on time"]

1. e4 {[%clk 0:02:58.8]} 1... d5 {[%clk 0:02:59.9]} 2. exd5 {[%clk 0:02:52.9]}
2... Qxd5 {[%clk 0:03:00.8]} 3. Nc3 {[%clk 0:02:51.5]} 3... Qa5 {[%clk
0:03:01.3]} 4. d4 {[%clk 0:02:41.6]} 4... Nf6 {[%clk 0:03:00.8]} 5. Bd2 {[%clk
0:02:41.3]} 5... c6 {[%clk 0:02:56.4]} 6. Ne4 {[%clk 0:02:41]} 6... Qd8 {[%clk
0:02:54]} 7. Nxf6+ {[%clk 0:02:41.1]} 7... exf6 {[%clk 0:02:54.9]} 8. Nf3 {[%clk
0:02:41]} 8... Be6 {[%clk 0:02:54.9]} 9. Bd3 {[%clk 0:02:40.8]} 9... Bd6 {[%clk
0:02:52.1]} 10. O-O {[%clk 0:02:40.6]} 10... O-O {[%clk 0:02:52.3]} 11. Re1
{[%clk 0:02:40.7]} 11... Nd7 {[%clk 0:02:51.8]} 12. a4 {[%clk 0:02:37.2]} 12...
Nb6 {[%clk 0:02:48.3]} 13. a5 {[%clk 0:02:35.7]} 13... Nd5 {[%clk 0:02:47.3]}
14. c4 {[%clk 0:02:30.9]} 14... Nf4 {[%clk 0:02:41.8]} 15. Bf1 {[%clk
0:02:27.4]} 15... Bg4 {[%clk 0:02:35]} 16. Qb3 {[%clk 0:02:16.8]} 16... Qd7
{[%clk 0:02:13]} 17. h3 {[%clk 0:01:45.4]} 17... Bh5 {[%clk 0:02:04.1]} 18. Re4
{[%clk 0:01:04]} 18... Ne6 {[%clk 0:01:47.5]} 19. Rh4 {[%clk 0:00:36.7]} 19...
Bg6 {[%clk 0:01:32.6]} 20. Rd1 {[%clk 0:00:30.4]} 20... Rab8 {[%clk 0:01:24.5]}
21. Be3 {[%clk 0:00:28.1]} 21... Be7 {[%clk 0:00:45.6]} 22. d5 {[%clk
0:00:28.2]} 22... Nc5 {[%clk 0:00:38.4]} 23. Bxc5 {[%clk 0:00:13.7]} 23... Bxc5
{[%clk 0:00:34.1]} 24. Qc3 {[%clk 0:00:14]} 24... Be7 {[%clk 0:00:17]} 25. d6
{[%clk 0:00:12.9]} 25... Bd8 {[%clk 0:00:11.9]} 26. c5 {[%clk 0:00:13.1]} 26...
f5 {[%clk 0:00:11.2]} 27. Ra4 {[%clk 0:00:12.4]} 27... Bf6 {[%clk 0:00:10.4]}
28. Qd2 {[%clk 0:00:12.1]} 28... Rfe8 {[%clk 0:00:10.5]} 29. b4 {[%clk
0:00:11.5]} 29... Bh5 {[%clk 0:00:10]} 30. Ra3 {[%clk 0:00:11.4]} 30... Bxf3
{[%clk 0:00:09.3]} 31. Rxf3 {[%clk 0:00:12.3]} 31... g6 {[%clk 0:00:09.8]} 32.
Bc4 {[%clk 0:00:12.1]} 32... Re4 {[%clk 0:00:08.9]} 33. Qa2 {[%clk 0:00:10.3]}
33... Rbe8 {[%clk 0:00:08.5]} 34. g3 {[%clk 0:00:10.6]} 34... f4 {[%clk
0:00:06]} 35. g4 {[%clk 0:00:07.9]} 35... h5 {[%clk 0:00:05.7]} 36. gxh5 {[%clk
0:00:08.5]} 36... gxh5 {[%clk 0:00:06.4]} 37. Kg2 {[%clk 0:00:07.3]} 37... Qf5
{[%clk 0:00:06.3]} 38. Bxf7+ {[%clk 0:00:07.2]} 38... Kh7 {[%clk 0:00:05.9]} 39.
Bxe8 {[%clk 0:00:08.1]} 39... Qg5+ {[%clk 0:00:06]} 40. Kh1 {[%clk 0:00:07.9]}
40... Bg7 {[%clk 0:00:04.9]} 41. Qc2 {[%clk 0:00:06.3]} 41... Qf5 {[%clk
0:00:02.7]} 42. Qb1 {[%clk 0:00:05.6]} 42... Be5 {[%clk 0:00:01.2]} 43. Bxh5
{[%clk 0:00:04.7]} 43... Qxh5 {[%clk 0:00:01.2]} 44. Qxe4+ {[%clk 0:00:04.3]}
44... Kh6 {[%clk 0:00:02.1]} 45. Rg1 {[%clk 0:00:05.2]} 1-0

[Event "Late-Titled-Tuesday-Blitz-February-27-2024"]
[Site "Chess.com"]
[Date "2024.02.27"]
[Round "2"]
[White "farzadbfd"]
[Black "Piotrek1979"]
[Result "0-1"]
[WhiteElo "2694"]
[BlackElo "2458"]
[TimeControl "180+1"]
[EndTime "14:18:04 PST"]
[Termination "Piotrek1979 won on time"]

1. d4 {[%clk 0:03:00.9]} 1... Nf6 {[%clk 0:02:58.3]} 2. Nf3 {[%clk 0:03:00.9]}
2... d5 {[%clk 0:02:57.5]} 3. c4 {[%clk 0:03:01.1]} 3... e6 {[%clk 0:02:58]} 4.
Nc3 {[%clk 0:03:00.8]} 4... dxc4 {[%clk 0:02:58.6]} 5. e4 {[%clk 0:02:58.8]}
5... b5 {[%clk 0:02:59]} 6. Bg5 {[%clk 0:02:53.1]} 6... b4 {[%clk 0:02:46.9]} 7.
Na4 {[%clk 0:02:43.7]} 7... Bb7 {[%clk 0:02:33.2]} 8. e5 {[%clk 0:02:31.8]} 8...
h6 {[%clk 0:02:33.8]} 9. Bh4 {[%clk 0:02:32.1]} 9... g5 {[%clk 0:02:34]} 10.
exf6 {[%clk 0:02:32.3]} 10... gxh4 {[%clk 0:02:32.1]} 11. Bxc4 {[%clk
0:02:32.4]} 11... Qxf6 {[%clk 0:02:23]} 12. Be2 {[%clk 0:02:18.9]} 12... h3
{[%clk 0:02:19.8]} 13. g3 {[%clk 0:02:16.9]} 13... Nd7 {[%clk 0:02:17.6]} 14.
Rc1 {[%clk 0:02:15.6]} 14... Bd6 {[%clk 0:01:45.3]} 15. Nc5 {[%clk 0:02:15.2]}
15... Bxc5 {[%clk 0:01:45.9]} 16. dxc5 {[%clk 0:02:15.3]} 16... Ne5 {[%clk
0:01:46.1]} 17. c6 {[%clk 0:02:08.8]} 17... Rd8 {[%clk 0:01:14.6]} 18. Qb3
{[%clk 0:01:45.9]} 18... Ba6 {[%clk 0:01:11.7]} 19. Nxe5 {[%clk 0:01:13.9]}
19... Qxe5 {[%clk 0:01:12.6]} 20. Qe3 {[%clk 0:01:10.1]} 20... Qd5 {[%clk
0:00:48.9]} 21. f3 {[%clk 0:00:32.1]} 21... Qxa2 {[%clk 0:00:43.7]} 22. O-O
{[%clk 0:00:31.1]} 22... Qxb2 {[%clk 0:00:36.9]} 23. Rf2 {[%clk 0:00:20.4]}
23... Rd2 {[%clk 0:00:37]} 24. Re1 {[%clk 0:00:17.9]} 24... Bxe2 {[%clk
0:00:30.8]} 25. Rfxe2 {[%clk 0:00:18.4]} 25... Rxe2 {[%clk 0:00:30.9]} 26. Rxe2
{[%clk 0:00:19.3]} 26... Qa1+ {[%clk 0:00:25.5]} 27. Re1 {[%clk 0:00:19.3]}
27... Qc3 {[%clk 0:00:26.1]} 28. Qxc3 {[%clk 0:00:12.4]} 28... bxc3 {[%clk
0:00:27]} 29. Rc1 {[%clk 0:00:12.8]} 29... Ke7 {[%clk 0:00:26.4]} 30. Rxc3
{[%clk 0:00:12.2]} 30... Kd6 {[%clk 0:00:27]} 31. Kf2 {[%clk 0:00:10.9]} 31...
Rb8 {[%clk 0:00:26.7]} 32. g4 {[%clk 0:00:08.4]} 32... Rb1 {[%clk 0:00:25.6]}
33. Kg3 {[%clk 0:00:08.3]} 33... Rg1+ {[%clk 0:00:26.1]} 34. Kxh3 {[%clk
0:00:08.7]} 34... e5 {[%clk 0:00:25.4]} 35. Kh4 {[%clk 0:00:09.1]} 35... Ra1
{[%clk 0:00:15.6]} 36. Kh5 {[%clk 0:00:09.1]} 36... a5 {[%clk 0:00:15]} 37. Kxh6
{[%clk 0:00:09.3]} 37... a4 {[%clk 0:00:15.8]} 38. h4 {[%clk 0:00:09.6]} 38...
a3 {[%clk 0:00:16.3]} 39. h5 {[%clk 0:00:09.5]} 39... a2 {[%clk 0:00:16.8]} 40.
Rc2 {[%clk 0:00:10]} 40... Ke6 {[%clk 0:00:14.1]} 41. Kg7 {[%clk 0:00:10.3]}
41... f5 {[%clk 0:00:14.1]} 42. g5 {[%clk 0:00:09.5]} 42... Rg1 {[%clk
0:00:11.2]} 43. Rxa2 {[%clk 0:00:04.6]} 43... Rxg5+ {[%clk 0:00:11.8]} 44. Kh6
{[%clk 0:00:04]} 44... Rg3 {[%clk 0:00:12.4]} 45. Ra7 {[%clk 0:00:02.4]} 45...
Kd6 {[%clk 0:00:12.3]} 46. Ra3 {[%clk 0:00:01.9]} 46... e4 {[%clk 0:00:11.8]}
0-1

[Event "Late-Titled-Tuesday-Blitz-February-27-2024"]
[Site "Chess.com"]
[Date "2024.02.27"]
[Round "2"]
[White "Seochesspie"]
[Black "MKlose11"]
[Result "0-1"]
[WhiteElo "2890"]
[BlackElo "2603"]
[TimeControl "180+1"]
[EndTime "14:18:07 PST"]
[Termination "MKlose11 won by resignation"]

1. d4 {[%clk 0:03:00.9]} 1... Nf6 {[%clk 0:02:56.2]} 2. Nf3 {[%clk 0:03:01.8]}
2... c5 {[%clk 0:02:55.6]} 3. d5 {[%clk 0:03:01]} 3... b5 {[%clk 0:02:53.9]} 4.
c3 {[%clk 0:03:01.3]} 4... g6 {[%clk 0:02:51.9]} 5. e4 {[%clk 0:02:58.8]} 5...
Nxe4 {[%clk 0:02:51.5]} 6. Bxb5 {[%clk 0:02:59.3]} 6... Bg7 {[%clk 0:02:49.6]}
7. O-O {[%clk 0:02:59.3]} 7... O-O {[%clk 0:02:49.3]} 8. Re1 {[%clk 0:02:58]}
8... Nf6 {[%clk 0:02:48.1]} 9. c4 {[%clk 0:02:55.3]} 9... d6 {[%clk 0:02:48]}
10. Nc3 {[%clk 0:02:55.2]} 10... Bd7 {[%clk 0:02:45.7]} 11. Qe2 {[%clk
0:02:45.8]} 11... Bxb5 {[%clk 0:02:44.3]} 12. Nxb5 {[%clk 0:02:46.7]} 12... a6
{[%clk 0:02:39.4]} 13. Nc3 {[%clk 0:02:45.3]} 13... Re8 {[%clk 0:02:37]} 14. Rb1
{[%clk 0:02:45.4]} 14... Nbd7 {[%clk 0:02:37]} 15. b3 {[%clk 0:02:45.6]} 15...
Rb8 {[%clk 0:02:37.3]} 16. Bd2 {[%clk 0:02:45.1]} 16... Qc7 {[%clk 0:02:32.3]}
17. h3 {[%clk 0:02:44.8]} 17... e5 {[%clk 0:02:23.6]} 18. dxe6 {[%clk
0:02:44.6]} 18... Rxe6 {[%clk 0:02:23.2]} 19. Qd3 {[%clk 0:02:44.6]} 19... Rbe8
{[%clk 0:02:22.1]} 20. Rxe6 {[%clk 0:02:42.9]} 20... Rxe6 {[%clk 0:02:23]} 21.
Rd1 {[%clk 0:02:42.5]} 21... Qc6 {[%clk 0:02:15.6]} 22. Nd5 {[%clk 0:02:31.7]}
22... h6 {[%clk 0:02:12.2]} 23. Bc3 {[%clk 0:02:29.3]} 23... Ne5 {[%clk
0:01:56.9]} 24. Nxe5 {[%clk 0:02:22.7]} 24... dxe5 {[%clk 0:01:56.1]} 25. Nxf6+
{[%clk 0:02:21.8]} 25... Bxf6 {[%clk 0:01:53]} 26. Qd5 {[%clk 0:02:21.8]} 26...
e4 {[%clk 0:01:41]} 27. Bxf6 {[%clk 0:02:10.2]} 27... Rxf6 {[%clk 0:01:40.7]}
28. Qxc6 {[%clk 0:01:59.1]} 28... Rxc6 {[%clk 0:01:40.2]} 29. g4 {[%clk
0:01:57]} 29... Kg7 {[%clk 0:01:37.1]} 30. Rd5 {[%clk 0:01:56.9]} 30... a5
{[%clk 0:01:29.4]} 31. Kf1 {[%clk 0:01:56.7]} 31... a4 {[%clk 0:01:26.1]} 32.
bxa4 {[%clk 0:01:48.3]} 32... Ra6 {[%clk 0:01:25.7]} 33. Rxc5 {[%clk 0:01:48.5]}
33... Rxa4 {[%clk 0:01:26]} 34. Ke2 {[%clk 0:01:28.2]} 34... Rxa2+ {[%clk
0:01:19.1]} 35. Ke3 {[%clk 0:01:28.4]} 35... Ra3+ {[%clk 0:01:19.6]} 36. Kxe4
{[%clk 0:01:28.8]} 36... Rxh3 {[%clk 0:01:20.3]} 37. Rc8 {[%clk 0:01:28.2]}
37... Rh4 {[%clk 0:01:13.9]} 38. f3 {[%clk 0:01:24.5]} 38... h5 {[%clk
0:01:14.1]} 39. Kf4 {[%clk 0:01:11.4]} 39... hxg4 {[%clk 0:01:13.3]} 40. Kg3
{[%clk 0:01:12.1]} 40... gxf3 {[%clk 0:01:08.4]} 41. Kxf3 {[%clk 0:01:09.4]}
41... Kf6 {[%clk 0:01:04.7]} 42. c5 {[%clk 0:01:06.8]} 42... Kg5 {[%clk
0:01:00.7]} 43. c6 {[%clk 0:01:01.7]} 43... f5 {[%clk 0:00:57.9]} 44. c7 {[%clk
0:00:58.4]} 44... Rc4 {[%clk 0:00:57.1]} 45. Kg3 {[%clk 0:00:58.7]} 45... Rc3+
{[%clk 0:00:56.8]} 46. Kf2 {[%clk 0:00:58.1]} 46... Kf4 {[%clk 0:00:53.8]} 47.
Rg8 {[%clk 0:00:56.7]} 47... Rxc7 {[%clk 0:00:53.2]} 48. Rxg6 {[%clk 0:00:56.9]}
48... Rc2+ {[%clk 0:00:54.1]} 49. Ke1 {[%clk 0:00:56.5]} 49... Kf3 {[%clk
0:00:47.6]} 50. Rh6 {[%clk 0:00:22.6]} 50... f4 {[%clk 0:00:45.1]} 51. Rg6
{[%clk 0:00:20.3]} 51... Ra2 {[%clk 0:00:40.4]} 52. Rg8 {[%clk 0:00:19.8]} 52...
Ra1+ {[%clk 0:00:40.5]} 53. Kd2 {[%clk 0:00:20.2]} 53... Kf2 {[%clk 0:00:41.1]}
54. Kd3 {[%clk 0:00:19.8]} 54... f3 {[%clk 0:00:41.1]} 55. Rg7 {[%clk
0:00:14.3]} 55... Kf1 {[%clk 0:00:40.3]} 56. Ke3 {[%clk 0:00:14.2]} 56... Ra3+
{[%clk 0:00:36.3]} 57. Kd2 {[%clk 0:00:14.1]} 57... f2 {[%clk 0:00:35.1]} 58.
Rg8 {[%clk 0:00:14.2]} 58... Ra5 {[%clk 0:00:33.6]} 59. Rd8 {[%clk 0:00:13.4]}
59... Rg5 {[%clk 0:00:32.2]} 60. Ke3 {[%clk 0:00:10.4]} 60... Kg1 {[%clk
0:00:26.7]} 0-1